Workbook

Sheet Chi phí tu sửa phòng tắm
B1: Trang tính Chi phí tu sửa phòng tắm
B2: LƯU Ý: Các cột Chênh lệch trong bảng sẽ hiển thị nếu số tiền thực tế cao hơn số tiền ước tính. Các số màu đỏ biểu thị số tiền thực tế cao hơn (âm) và các số màu đen biểu thị số tiền thực tế thấp hơn (dương).
E3: Chi phí theo khoản (₫) | H3: Tổng chi phí (₫)
B4: Khu vực | C4: Mục | D4: Số lượng | E4: Ước tính | F4: Thực tế | G4: Chênh lệch | H4: Ước tính | I4: Thực tế | J4: Chênh lệch
B5: Bồn tắm/vòi sen | C5: Bồn tắm, gang, 5', tiêu chuẩn | D5: 1 | E5: 250.00 ₫ | F5: =RANDBETWEEN(E5+2,E5+20) -> 266.00 ₫ | G5: =IFERROR(Chi_phí[[#This Row],[Ước tính]]-Chi_phí[[#This Row],[Thực tế]], "") -> -16.00 ₫ | H5: =IFERROR(Chi_phí[[#This Row],[Số lượng]]*Chi_phí[[#This Row],[Ước tính]], "") -> 250.00 ₫ | I5: =IFERROR(Chi_phí[[#This Row],[Số lượng]]*Chi_phí[[#This Row],[Thực tế]], "") -> 266.00 ₫ | J5: =IFERROR(Chi_phí[[#This Row],[Ước tính ]]-Chi_phí[[#This Row],[Thực tế ]], "") -> -16.00 ₫
B6: Bồn tắm/vòi sen | C6: Vách tắm, có bản lề, tiêu chuẩn | D6: 1 | E6: 200.00 ₫ | F6: 206.00 ₫ | G6: =IFERROR(Chi_phí[[#This Row],[Ước tính]]-Chi_phí[[#This Row],[Thực tế]], "") -> -6.00 ₫ | H6: =IFERROR(Chi_phí[[#This Row],[Số lượng]]*Chi_phí[[#This Row],[Ước tính]], "") -> 200.00 ₫ | I6: =IFERROR(Chi_phí[[#This Row],[Số lượng]]*Chi_phí[[#This Row],[Thực tế]], "") -> 206.00 ₫ | J6: =IFERROR(Chi_phí[[#This Row],[Ước tính ]]-Chi_phí[[#This Row],[Thực tế ]], "") -> -6.00 ₫
B7: Bồn tắm/vòi sen | C7: Đầu vòi sen, tiêu chuẩn | D7: 1 | E7: 50.00 ₫ | F7: 55.00 ₫ | G7: =IFERROR(Chi_phí[[#This Row],[Ước tính]]-Chi_phí[[#This Row],[Thực tế]], "") -> -5.00 ₫ | H7: =IFERROR(Chi_phí[[#This Row],[Số lượng]]*Chi_phí[[#This Row],[Ước tính]], "") -> 50.00 ₫ | I7: =IFERROR(Chi_phí[[#This Row],[Số lượng]]*Chi_phí[[#This Row],[Thực tế]], "") -> 55.00 ₫ | J7: =IFERROR(Chi_phí[[#This Row],[Ước tính ]]-Chi_phí[[#This Row],[Thực tế ]], "") -> -5.00 ₫
B8: Bồn tắm/vòi sen | C8: Tường quanh bồn tắm, tiêu chuẩn | D8: 1 | E8: 200.00 ₫ | F8: 210.00 ₫ | G8: =IFERROR(Chi_phí[[#This Row],[Ước tính]]-Chi_phí[[#This Row],[Thực tế]], "") -> -10.00 ₫ | H8: =IFERROR(Chi_phí[[#This Row],[Số lượng]]*Chi_phí[[#This Row],[Ước tính]], "") -> 200.00 ₫ | I8: =IFERROR(Chi_phí[[#This Row],[Số lượng]]*Chi_phí[[#This Row],[Thực tế]], "") -> 210.00 ₫ | J8: =IFERROR(Chi_phí[[#This Row],[Ước tính ]]-Chi_phí[[#This Row],[Thực tế ]], "") -> -10.00 ₫
B9: Tủ | C9: Tủ thuốc 24'', sang trọng | D9: 1 | E9: 200.00 ₫ | F9: 215.00 ₫ | G9: =IFERROR(Chi_phí[[#This Row],[Ước tính]]-Chi_phí[[#This Row],[Thực tế]], "") -> -15.00 ₫ | H9: =IFERROR(Chi_phí[[#This Row],[Số lượng]]*Chi_phí[[#This Row],[Ước tính]], "") -> 200.00 ₫ | I9: =IFERROR(Chi_phí[[#This Row],[Số lượng]]*Chi_phí[[#This Row],[Thực tế]], "") -> 215.00 ₫ | J9: =IFERROR(Chi_phí[[#This Row],[Ước tính ]]-Chi_phí[[#This Row],[Thực tế ]], "") -> -15.00 ₫
B10: Tủ | C10: Bàn trang điểm 30'', tiêu chuẩn | D10: 2 | E10: 100.00 ₫ | F10: 102.00 ₫ | G10: =IFERROR(Chi_phí[[#This Row],[Ước tính]]-Chi_phí[[#This Row],[Thực tế]], "") -> -2.00 ₫ | H10: =IFERROR(Chi_phí[[#This Row],[Số lượng]]*Chi_phí[[#This Row],[Ước tính]], "") -> 200.00 ₫ | I10: =IFERROR(Chi_phí[[#This Row],[Số lượng]]*Chi_phí[[#This Row],[Thực tế]], "") -> 204.00 ₫ | J10: =IFERROR(Chi_phí[[#This Row],[Ước tính ]]-Chi_phí[[#This Row],[Thực tế ]], "") -> -4.00 ₫
B11: Bệ rửa | C11: Gạch sứ, sang trọng (số lượng tính theo feet chiều dài) | D11: 5 | E11: 22.50 ₫ | F11: 26.00 ₫ | G11: =IFERROR(Chi_phí[[#This Row],[Ước tính]]-Chi_phí[[#This Row],[Thực tế]], "") -> -3.50 ₫ | H11: =IFERROR(Chi_phí[[#This Row],[Số lượng]]*Chi_phí[[#This Row],[Ước tính]], "") -> 112.50 ₫ | I11: =IFERROR(Chi_phí[[#This Row],[Số lượng]]*Chi_phí[[#This Row],[Thực tế]], "") -> 130.00 ₫ | J11: =IFERROR(Chi_phí[[#This Row],[Ước tính ]]-Chi_phí[[#This Row],[Thực tế ]], "") -> -17.50 ₫
B12: Vòi | C12: Vòi, bồn tắm, tiêu chuẩn | D12: 1 | E12: 90.00 ₫ | F12: 99.00 ₫ | G12: =IFERROR(Chi_phí[[#This Row],[Ước tính]]-Chi_phí[[#This Row],[Thực tế]], "") -> -9.00 ₫ | H12: =IFERROR(Chi_phí[[#This Row],[Số lượng]]*Chi_phí[[#This Row],[Ước tính]], "") -> 90.00 ₫ | I12: =IFERROR(Chi_phí[[#This Row],[Số lượng]]*Chi_phí[[#This Row],[Thực tế]], "") -> 99.00 ₫ | J12: =IFERROR(Chi_phí[[#This Row],[Ước tính ]]-Chi_phí[[#This Row],[Thực tế ]], "") -> -9.00 ₫
B13: Vòi | C13: Vòi, vòi hoa sen, loại một vòi, tiêu chuẩn | D13: 1 | E13: 115.00 ₫ | F13: 123.00 ₫ | G13: =IFERROR(Chi_phí[[#This Row],[Ước tính]]-Chi_phí[[#This Row],[Thực tế]], "") -> -8.00 ₫ | H13: =IFERROR(Chi_phí[[#This Row],[Số lượng]]*Chi_phí[[#This Row],[Ước tính]], "") -> 115.00 ₫ | I13: =IFERROR(Chi_phí[[#This Row],[Số lượng]]*Chi_phí[[#This Row],[Thực tế]], "") -> 123.00 ₫ | J13: =IFERROR(Chi_phí[[#This Row],[Ước tính ]]-Chi_phí[[#This Row],[Thực tế ]], "") -> -8.00 ₫
B14: Vòi | C14: Vòi bồn rửa, tiêu chuẩn | D14: 1 | E14: 95.00 ₫ | F14: 99.00 ₫ | G14: =IFERROR(Chi_phí[[#This Row],[Ước tính]]-Chi_phí[[#This Row],[Thực tế]], "") -> -4.00 ₫ | H14: =IFERROR(Chi_phí[[#This Row],[Số lượng]]*Chi_phí[[#This Row],[Ước tính]], "") -> 95.00 ₫ | I14: =IFERROR(Chi_phí[[#This Row],[Số lượng]]*Chi_phí[[#This Row],[Thực tế]], "") -> 99.00 ₫ | J14: =IFERROR(Chi_phí[[#This Row],[Ước tính ]]-Chi_phí[[#This Row],[Thực tế ]], "") -> -4.00 ₫
B15: Sàn | C15: Gạch sứ, tiêu chuẩn (số lượng tính theo feet chiều dài) | D15: 35 | E15: 12.00 ₫ | F15: 24.00 ₫ | G15: =IFERROR(Chi_phí[[#This Row],[Ước tính]]-Chi_phí[[#This Row],[Thực tế]], "") -> -12.00 ₫ | H15: =IFERROR(Chi_phí[[#This Row],[Số lượng]]*Chi_phí[[#This Row],[Ước tính]], "") -> 420.00 ₫ | I15: =IFERROR(Chi_phí[[#This Row],[Số lượng]]*Chi_phí[[#This Row],[Thực tế]], "") -> 840.00 ₫ | J15: =IFERROR(Chi_phí[[#This Row],[Ước tính ]]-Chi_phí[[#This Row],[Thực tế ]], "") -> -420.00 ₫
B16: Đồ ngũ kim | C16: Thanh treo khăn tắm, tiêu chuẩn | D16: 2 | E16: 15.00 ₫ | F16: 28.00 ₫ | G16: =IFERROR(Chi_phí[[#This Row],[Ước tính]]-Chi_phí[[#This Row],[Thực tế]], "") -> -13.00 ₫ | H16: =IFERROR(Chi_phí[[#This Row],[Số lượng]]*Chi_phí[[#This Row],[Ước tính]], "") -> 30.00 ₫ | I16: =IFERROR(Chi_phí[[#This Row],[Số lượng]]*Chi_phí[[#This Row],[Thực tế]], "") -> 56.00 ₫ | J16: =IFERROR(Chi_phí[[#This Row],[Ước tính ]]-Chi_phí[[#This Row],[Thực tế ]], "") -> -26.00 ₫
B17: Đồ ngũ kim | C17: Giá đựng giấy vệ sinh | D17: 1 | E17: 10.00 ₫ | F17: 25.00 ₫ | G17: =IFERROR(Chi_phí[[#This Row],[Ước tính]]-Chi_phí[[#This Row],[Thực tế]], "") -> -15.00 ₫ | H17: =IFERROR(Chi_phí[[#This Row],[Số lượng]]*Chi_phí[[#This Row],[Ước tính]], "") -> 10.00 ₫ | I17: =IFERROR(Chi_phí[[#This Row],[Số lượng]]*Chi_phí[[#This Row],[Thực tế]], "") -> 25.00 ₫ | J17: =IFERROR(Chi_phí[[#This Row],[Ước tính ]]-Chi_phí[[#This Row],[Thực tế ]], "") -> -15.00 ₫
B18: Hệ thống chiếu sáng | C18: Đèn lắp chìm, tiêu chuẩn | D18: 4 | E18: 25.00 ₫ | F18: 41.00 ₫ | G18: =IFERROR(Chi_phí[[#This Row],[Ước tính]]-Chi_phí[[#This Row],[Thực tế]], "") -> -16.00 ₫ | H18: =IFERROR(Chi_phí[[#This Row],[Số lượng]]*Chi_phí[[#This Row],[Ước tính]], "") -> 100.00 ₫ | I18: =IFERROR(Chi_phí[[#This Row],[Số lượng]]*Chi_phí[[#This Row],[Thực tế]], "") -> 164.00 ₫ | J18: =IFERROR(Chi_phí[[#This Row],[Ước tính ]]-Chi_phí[[#This Row],[Thực tế ]], "") -> -64.00 ₫
B19: Bồn rửa | C19: Bồn rửa mặt, tiêu chuẩn | D19: 2 | E19: 60.00 ₫ | F19: 73.00 ₫ | G19: =IFERROR(Chi_phí[[#This Row],[Ước tính]]-Chi_phí[[#This Row],[Thực tế]], "") -> -13.00 ₫ | H19: =IFERROR(Chi_phí[[#This Row],[Số lượng]]*Chi_phí[[#This Row],[Ước tính]], "") -> 120.00 ₫ | I19: =IFERROR(Chi_phí[[#This Row],[Số lượng]]*Chi_phí[[#This Row],[Thực tế]], "") -> 146.00 ₫ | J19: =IFERROR(Chi_phí[[#This Row],[Ước tính ]]-Chi_phí[[#This Row],[Thực tế ]], "") -> -26.00 ₫
B20: Khác | D20: 1 | E20: 20.00 ₫ | F20: 30.00 ₫ | G20: =IFERROR(Chi_phí[[#This Row],[Ước tính]]-Chi_phí[[#This Row],[Thực tế]], "") -> -10.00 ₫ | H20: =IFERROR(Chi_phí[[#This Row],[Số lượng]]*Chi_phí[[#This Row],[Ước tính]], "") -> 20.00 ₫ | I20: =IFERROR(Chi_phí[[#This Row],[Số lượng]]*Chi_phí[[#This Row],[Thực tế]], "") -> 30.00 ₫ | J20: =IFERROR(Chi_phí[[#This Row],[Ước tính ]]-Chi_phí[[#This Row],[Thực tế ]], "") -> -10.00 ₫
B21: Tổng phụ | E21: =SUBTOTAL(109,Chi_phí[Ước tính]) -> 1,464.50 ₫ | F21: =SUBTOTAL(109,Chi_phí[Thực tế]) -> 1,622.00 ₫ | G21: =SUBTOTAL(109,Chi_phí[Chênh lệch]) -> -157.50 ₫ | H21: =SUBTOTAL(109,Chi_phí[[Ước tính ]]) -> 2,212.50 ₫ | I21: =SUBTOTAL(109,Chi_phí[[Thực tế ]]) -> 2,868.00 ₫ | J21: =SUBTOTAL(109,Chi_phí[[Chênh lệch ]]) -> -655.50 ₫
B22: Chi phí ngoài dự kiến (cộng thêm 30% chi phí dự kiến) | E22: =IFERROR(Chi_phí[[#Totals],[Ước tính]]*0.3, "") -> 439.35 ₫ | H22: =IFERROR(Chi_phí[[#Totals],[Ước tính ]]*0.3, "") -> 663.75 ₫
B23: Tổng chi phí | E23: =IFERROR(SUM(E21:E21), "") -> 1,464.50 ₫ | H23: =IFERROR(SUM(Chi_phí[[#Totals],[Ước tính ]],Hàng_dư), "") -> 2,876.25 ₫
